[Event "NJSK 2022 Meisjes C"]
[Site "Almelo, Netherlands"]
[Date "2022.05.04"]
[Round "4.1"]
[White "Feng, Elysia"]
[Black "Westerhof, Fleur"]
[Result "1-0"]
[TimeControl "90min/40moves + 30min + 30sec/move"]
[WhiteElo "1641"]
[BlackElo "1509"]

1. e4 {[%clk 01:30:58]} {[%emt 00:00:02]} e5 {[%clk 01:30:49]} {[%emt
00:00:10]} 2. Nf3 {[%clk 01:31:24]} {[%emt 00:00:05]} Nc6 {[%clk 01:31:07]}
{[%emt 00:00:12]} 3. Bb5 {[%clk 01:31:48]} {[%emt 00:00:06]} a6 {[%clk
01:31:21]} {[%emt 00:00:16]} 4. Bxc6 {[%clk 01:32:08]} {[%emt 00:00:10]} dxc6
{[%clk 01:31:31]} {[%emt 00:00:20]} 5. O-O {[%clk 01:32:21]} {[%emt 00:00:18]}
Bd6 {[%clk 01:31:07]} {[%emt 00:00:53]} 6. d4 {[%clk 01:32:44]} {[%emt
00:00:08]} exd4 {[%clk 01:31:09]} {[%emt 00:00:28]} 7. Qxd4 {[%clk 01:33:07]}
{[%emt 00:00:06]} f6 {[%clk 01:31:16]} {[%emt 00:00:23]} 8. Re1 {[%clk
01:33:09]} {[%emt 00:00:29]} Ne7 {[%clk 01:30:47]} {[%emt 00:00:58]} 9. e5
{[%clk 01:33:09]} {[%emt 00:00:31]} fxe5 {[%clk 01:30:10]} {[%emt 00:01:07]} 10.
Nxe5 {[%clk 01:33:18]} {[%emt 00:00:21]} Be6 {[%clk 01:29:04]} {[%emt
00:01:34]} 11. Nc3 {[%clk 01:29:11]} {[%emt 00:04:39]} O-O {[%clk 01:24:26]}
{[%emt 00:05:08]} 12. Bg5 {[%clk 01:20:23]} {[%emt 00:09:17]} Qe8 {[%clk
01:12:40]} {[%emt 00:12:16]} 13. Bxe7 {[%clk 01:09:35]} {[%emt 00:11:18]} Qxe7
{[%clk 01:05:28]} {[%emt 00:07:42]} 14. Qe4 {[%clk 01:02:11]} {[%emt 00:07:54]}
Rae8 {[%clk 00:52:17]} {[%emt 00:13:41]} 15. Re3 {[%clk 00:26:55]} {[%emt
00:35:47]} Qf6 {[%clk 00:38:53]} {[%emt 00:13:52]} 16. Nd3 {[%clk 00:21:19]}
{[%emt 00:06:07]} Qh6 {[%clk 00:26:58]} {[%emt 00:12:24]} 17. h3 {[%clk
00:16:38]} {[%emt 00:05:12]} Bd5 {[%clk 00:21:34]} {[%emt 00:05:54]} 18. Qxe8
{[%clk 00:13:18]} {[%emt 00:03:51]} Rxe8 {[%clk 00:21:54]} {[%emt 00:00:09]} 19.
Rxe8+ {[%clk 00:13:44]} {[%emt 00:00:04]} Kf7 {[%clk 00:22:15]} {[%emt
00:00:09]} 20. Rae1 {[%clk 00:13:42]} {[%emt 00:00:32]} Bc4 {[%clk 00:18:10]}
{[%emt 00:04:35]} 21. R8e3 {[%clk 00:12:18]} {[%emt 00:01:54]} b5 {[%clk
00:11:23]} {[%emt 00:07:17]} 22. Rf3+ {[%clk 00:12:19]} {[%emt 00:00:29]} Kg6
{[%clk 00:11:24]} {[%emt 00:00:28]} 23. Rfe3 {[%clk 00:09:43]} {[%emt
00:03:08]} Kf7 {[%clk 00:09:21]} {[%emt 00:02:32]} 24. b3 {[%clk 00:09:49]}
{[%emt 00:00:25]} Bxd3 {[%clk 00:08:54]} {[%emt 00:00:57]} 25. Rf3+ {[%clk
00:09:57]} {[%emt 00:00:22]} Bf4 {[%clk 00:08:36]} {[%emt 00:00:47]} 26. cxd3
{[%clk 00:10:00]} {[%emt 00:00:27]} g5 {[%clk 00:07:28]} {[%emt 00:01:38]} 27.
g3 {[%clk 00:07:56]} {[%emt 00:02:36]} Qxh3 {[%clk 00:07:33]} {[%emt 00:00:25]}
28. Ree3 {[%clk 00:08:12]} {[%emt 00:00:14]} Qg4 {[%clk 00:07:35]} {[%emt
00:00:27]} 29. Kf1 {[%clk 00:07:33]} {[%emt 00:01:10]} Kg6 {[%clk 00:06:09]}
{[%emt 00:01:56]} 30. gxf4 {[%clk 00:07:41]} {[%emt 00:00:22]} gxf4 {[%clk
00:06:29]} {[%emt 00:00:09]} 31. Rg3 {[%clk 00:08:04]} {[%emt 00:00:08]} fxg3
{[%clk 00:06:44]} {[%emt 00:00:15]} 32. Rxg3 {[%clk 00:08:30]} {[%emt
00:00:04]} h5 {[%clk 00:07:02]} {[%emt 00:00:11]} 33. Ne4 {[%clk 00:08:03]}
{[%emt 00:00:58]} Kf5 {[%clk 00:07:05]} {[%emt 00:00:27]} 34. Rxg4 {[%clk
00:08:13]} {[%emt 00:00:20]} hxg4 {[%clk 00:07:27]} {[%emt 00:00:08]} 35. Ke2
{[%clk 00:08:35]} {[%emt 00:00:08]} Ke5 {[%clk 00:07:37]} {[%emt 00:00:20]} 36.
Ke3 {[%clk 00:08:40]} {[%emt 00:00:24]} Kd5 {[%clk 00:08:00]} {[%emt 00:00:07]}
37. Nf6+ {[%clk 00:09:03]} {[%emt 00:00:07]} 1-0

[Event "NJSK 2022 Meisjes C"]
[Site "Almelo, Netherlands"]
[Date "2022.05.04"]
[Round "4.2"]
[White "Liu, Chia-Yun"]
[Black "Maris, Lauri"]
[Result "0-1"]
[TimeControl "90min/40moves + 30min + 30sec/move"]
[WhiteElo "1148"]
[BlackElo "1619"]

1. e4 {[%clk 01:30:58]} {[%emt 00:00:01]} e5 {[%clk 01:30:56]} {[%emt
00:00:05]} 2. Nf3 {[%clk 01:31:22]} {[%emt 00:00:05]} Nc6 {[%clk 01:31:18]}
{[%emt 00:00:08]} 3. Bc4 {[%clk 01:31:46]} {[%emt 00:00:07]} Bc5 {[%clk
01:31:41]} {[%emt 00:00:07]} 4. c3 {[%clk 01:32:03]} {[%emt 00:00:13]} Nf6
{[%clk 01:32:04]} {[%emt 00:00:07]} 5. d3 {[%clk 01:32:23]} {[%emt 00:00:10]}
O-O {[%clk 01:32:26]} {[%emt 00:00:08]} 6. O-O {[%clk 01:32:23]} {[%emt
00:00:30]} d6 {[%clk 01:32:45]} {[%emt 00:00:11]} 7. b4 {[%clk 01:31:51]}
{[%emt 00:01:01]} Bb6 {[%clk 01:32:39]} {[%emt 00:00:37]} 8. a4 {[%clk
01:32:10]} {[%emt 00:00:11]} a5 {[%clk 01:32:27]} {[%emt 00:00:41]} 9. b5
{[%clk 01:32:15]} {[%emt 00:00:25]} Ne7 {[%clk 01:32:36]} {[%emt 00:00:22]} 10.
Nbd2 {[%clk 01:32:19]} {[%emt 00:00:25]} Ng6 {[%clk 01:32:21]} {[%emt
00:00:46]} 11. h3 {[%clk 01:31:53]} {[%emt 00:00:55]} h6 {[%clk 01:31:59]}
{[%emt 00:00:52]} 12. Re1 {[%clk 01:31:54]} {[%emt 00:00:29]} Re8 {[%clk
01:31:03]} {[%emt 00:01:26]} 13. Nf1 {[%clk 01:29:38]} {[%emt 00:02:46]} Be6
{[%clk 01:30:18]} {[%emt 00:01:15]} 14. N1d2 {[%clk 01:26:03]} {[%emt
00:04:05]} Qd7 {[%clk 01:27:56]} {[%emt 00:02:51]} 15. Bxe6 {[%clk 01:25:36]}
{[%emt 00:00:58]} Qxe6 {[%clk 01:28:01]} {[%emt 00:00:25]} 16. Nf1 {[%clk
01:22:47]} {[%emt 00:03:20]} d5 {[%clk 01:24:45]} {[%emt 00:03:45]} 17. Ng3
{[%clk 01:20:37]} {[%emt 00:02:40]} dxe4 {[%clk 01:24:33]} {[%emt 00:00:43]} 18.
dxe4 {[%clk 01:20:25]} {[%emt 00:00:41]} Rad8 {[%clk 01:24:36]} {[%emt
00:00:27]} 19. Bd2 {[%clk 01:17:01]} {[%emt 00:03:55]} Nf4 {[%clk 01:23:41]}
{[%emt 00:01:24]} 20. Qc1 {[%clk 01:14:48]} {[%emt 00:02:44]} Nd3 {[%clk
01:21:10]} {[%emt 00:03:01]} 21. Qc2 {[%clk 01:11:11]} {[%emt 00:04:06]} Bxf2+
{[%clk 01:21:21]} {[%emt 00:00:19]} 22. Kh2 {[%clk 01:09:48]} {[%emt 00:01:53]}
Bxg3+ {[%clk 01:21:06]} {[%emt 00:00:45]} 23. Kxg3 {[%clk 01:09:53]} {[%emt
00:00:25]} Nxe1 {[%clk 01:21:16]} {[%emt 00:00:20]} 24. Rxe1 {[%clk 01:09:56]}
{[%emt 00:00:28]} b6 {[%clk 01:20:24]} {[%emt 00:01:22]} 25. Nh4 {[%clk
01:08:38]} {[%emt 00:01:47]} Qc4 {[%clk 01:19:03]} {[%emt 00:01:48]} 26. Nf5
{[%clk 01:07:06]} {[%emt 00:02:06]} Qd3+ {[%clk 01:18:44]} {[%emt 00:00:48]} 27.
Qxd3 {[%clk 01:06:45]} {[%emt 00:00:51]} Rxd3+ {[%clk 01:19:09]} {[%emt
00:00:05]} 28. Be3 {[%clk 01:06:01]} {[%emt 00:01:14]} Nxe4+ {[%clk 01:19:02]}
{[%emt 00:00:38]} 29. Kh2 {[%clk 01:04:41]} {[%emt 00:01:49]} Nxc3 {[%clk
01:19:15]} {[%emt 00:00:17]} 30. Rc1 {[%clk 01:01:31]} {[%emt 00:03:40]} Nd5
{[%clk 01:19:30]} {[%emt 00:00:15]} 31. Bf2 {[%clk 00:59:59]} {[%emt 00:02:02]}
e4 {[%clk 01:19:15]} {[%emt 00:00:45]} 32. Re1 {[%clk 00:56:37]} {[%emt
00:03:51]} e3 {[%clk 01:19:19]} {[%emt 00:00:28]} 33. Ng3 {[%clk 00:51:18]}
{[%emt 00:05:49]} Nc3 {[%clk 01:19:03]} {[%emt 00:00:45]} 34. Bg1 {[%clk
00:43:12]} {[%emt 00:08:36]} e2 {[%clk 01:18:46]} {[%emt 00:00:47]} 35. Bf2
{[%clk 00:42:50]} {[%emt 00:00:52]} Rd1 {[%clk 01:18:48]} {[%emt 00:00:27]} 36.
Nxe2 {[%clk 00:42:41]} {[%emt 00:00:40]} Rxe2 {[%clk 01:19:02]} {[%emt
00:00:16]} 37. Rxe2 {[%clk 00:42:20]} {[%emt 00:00:52]} Nxe2 {[%clk 01:19:26]}
{[%emt 00:00:06]} 38. Bg3 {[%clk 00:42:29]} {[%emt 00:00:21]} Nxg3 {[%clk
01:19:48]} {[%emt 00:00:07]} 39. Kxg3 {[%clk 00:42:54]} {[%emt 00:00:05]} Rd4
{[%clk 01:20:08]} {[%emt 00:00:10]} 40. h4 {[%clk 00:42:49]} {[%emt 00:00:35]}
Rxa4 {[%clk 01:20:32]} {[%emt 00:00:06]} 41. Kh3 {[%clk 00:43:03]} {[%emt
00:00:16]} Rb4 {[%clk 01:20:53]} {[%emt 00:00:09]} 42. g3 {[%clk 00:43:14]}
{[%emt 00:00:19]} a4 {[%clk 01:21:15]} {[%emt 00:00:09]} 43. h5 {[%clk
00:43:33]} {[%emt 00:00:10]} a3 {[%clk 01:21:40]} {[%emt 00:00:06]} 44. g4
{[%clk 00:43:53]} {[%emt 00:00:10]} a2 {[%clk 01:22:02]} {[%emt 00:00:07]} 45.
Kh4 {[%clk 00:44:13]} {[%emt 00:00:10]} a1=Q {[%clk 01:22:22]} {[%emt
00:00:10]} 46. Kg3 {[%clk 00:44:33]} {[%emt 00:00:10]} Rb3+ {[%clk 01:22:34]}
{[%emt 00:00:18]} 47. Kh4 {[%clk 00:44:38]} {[%emt 00:00:25]} Qh1# {[%clk
01:22:51]} {[%emt 00:00:13]} 0-1

[Event "NJSK 2022 Meisjes C"]
[Site "Almelo, Netherlands"]
[Date "2022.05.04"]
[Round "4.3"]
[White "Van Apeldoorn, Vera"]
[Black "Damen, Josephine"]
[Result "1/2-1/2"]
[TimeControl "90min/40moves + 30min + 30sec/move"]
[WhiteElo "1022"]
[BlackElo "1600"]

1. d4 Nf6 {[%emt 00:00:06]} 2. c4 {[%clk 01:30:40]} {[%emt 00:00:14]} g6 {[%clk
01:30:55]} {[%emt 00:00:05]} 3. Nc3 {[%clk 01:31:00]} {[%emt 00:00:09]} Bg7
{[%clk 01:31:21]} {[%emt 00:00:04]} 4. e4 {[%clk 01:30:56]} {[%emt 00:00:34]}
d6 {[%clk 01:31:45]} {[%emt 00:00:07]} 5. Nf3 {[%clk 01:30:36]} {[%emt
00:00:50]} O-O {[%clk 01:32:02]} {[%emt 00:00:13]} 6. Be2 {[%clk 01:30:36]}
{[%emt 00:00:30]} e5 {[%clk 01:32:07]} {[%emt 00:00:24]} 7. dxe5 {[%clk
01:30:16]} {[%emt 00:00:50]} dxe5 {[%clk 01:32:29]} {[%emt 00:00:09]} 8. Qxd8
{[%clk 01:30:13]} {[%emt 00:00:33]} Rxd8 {[%clk 01:32:52]} {[%emt 00:00:06]} 9.
Bg5 {[%clk 01:30:09]} {[%emt 00:00:35]} Re8 {[%clk 01:33:04]} {[%emt 00:00:18]}
10. O-O-O {[%clk 01:29:07]} {[%emt 00:01:31]} Na6 {[%clk 01:27:19]} {[%emt
00:06:15]} 11. h3 {[%clk 01:25:13]} {[%emt 00:04:25]} Be6 {[%clk 01:20:03]}
{[%emt 00:07:46]} 12. Rhg1 {[%clk 01:16:37]} {[%emt 00:09:06]} Nc5 {[%clk
01:16:39]} {[%emt 00:03:54]} 13. Bxf6 {[%clk 01:13:51]} {[%emt 00:03:15]} Bxf6
{[%clk 01:17:04]} {[%emt 00:00:06]} 14. g4 {[%clk 01:12:17]} {[%emt 00:02:03]}
a5 {[%clk 01:09:58]} {[%emt 00:07:36]} 15. h4 {[%clk 01:08:26]} {[%emt
00:04:21]} c6 {[%clk 01:04:58]} {[%emt 00:05:31]} 16. h5 {[%clk 01:06:28]}
{[%emt 00:02:28]} g5 {[%clk 01:00:09]} {[%emt 00:05:18]} 17. Kb1 {[%clk
01:00:49]} {[%emt 00:06:10]} h6 {[%clk 00:55:16]} {[%emt 00:05:22]} 18. Rd2
{[%clk 00:55:15]} {[%emt 00:06:05]} Reb8 {[%clk 00:44:08]} {[%emt 00:11:37]} 19.
Rc2 {[%clk 00:51:04]} {[%emt 00:04:41]} Bd7 {[%clk 00:40:46]} {[%emt 00:03:50]}
20. Rd2 {[%clk 00:47:39]} {[%emt 00:03:57]} b5 {[%clk 00:33:59]} {[%emt
00:07:18]} 21. cxb5 {[%clk 00:47:05]} {[%emt 00:01:04]} cxb5 {[%clk 00:34:18]}
{[%emt 00:00:11]} 22. Rd5 {[%clk 00:47:23]} {[%emt 00:00:11]} b4 {[%clk
00:31:52]} {[%emt 00:02:56]} 23. Rxc5 {[%clk 00:46:41]} {[%emt 00:01:12]} bxc3
{[%clk 00:32:13]} {[%emt 00:00:08]} 24. Rxc3 {[%clk 00:47:00]} {[%emt
00:00:12]} Rb4 {[%clk 00:30:03]} {[%emt 00:02:36]} 25. Rc4 {[%clk 00:46:03]}
{[%emt 00:01:32]} Rab8 {[%clk 00:28:56]} {[%emt 00:01:34]} 26. Rxb4 {[%clk
00:45:30]} {[%emt 00:01:05]} Rxb4 {[%clk 00:29:19]} {[%emt 00:00:07]} 27. Nd2
{[%clk 00:45:03]} {[%emt 00:00:57]} Be7 {[%clk 00:26:22]} {[%emt 00:03:26]} 28.
Nc4 {[%clk 00:41:12]} {[%emt 00:04:21]} Bb5 {[%clk 00:17:14]} {[%emt 00:09:40]}
29. Rc1 {[%clk 00:40:51]} {[%emt 00:00:50]} a4 {[%clk 00:08:27]} {[%emt
00:09:18]} 30. a3 {[%clk 00:39:47]} {[%emt 00:01:35]} Rb3 {[%clk 00:08:44]}
{[%emt 00:00:12]} 31. Bd1 {[%clk 00:39:41]} {[%emt 00:00:35]} Bxc4 {[%clk
00:06:57]} {[%emt 00:02:18]} 32. Rxc4 {[%clk 00:40:02]} {[%emt 00:00:08]} Rd3
{[%clk 00:07:15]} {[%emt 00:00:12]} 33. Bxa4 {[%clk 00:40:06]} {[%emt
00:00:26]} Rf3 {[%clk 00:07:33]} {[%emt 00:00:11]} 34. Rc2 {[%clk 00:39:06]}
{[%emt 00:01:31]} Rf4 {[%clk 00:07:41]} {[%emt 00:00:22]} 35. Bb3 {[%clk
00:37:14]} {[%emt 00:02:22]} Rxg4 {[%clk 00:06:35]} {[%emt 00:01:36]} 36. Rc7
{[%clk 00:37:32]} {[%emt 00:00:12]} Kf8 {[%clk 00:06:50]} {[%emt 00:00:15]} 37.
Rc4 {[%clk 00:33:59]} {[%emt 00:04:02]} Rf4 {[%clk 00:05:50]} {[%emt 00:01:30]}
38. Rc6 {[%clk 00:32:14]} {[%emt 00:02:15]} Kg7 {[%clk 00:04:40]} {[%emt
00:01:39]} 39. Rc7 {[%clk 00:30:19]} {[%emt 00:02:27]} Kf8 {[%clk 00:05:03]}
{[%emt 00:00:06]} 1/2-1/2

[Event "NJSK 2022 Meisjes C"]
[Site "Almelo, Netherlands"]
[Date "2022.05.04"]
[Round "4.4"]
[White "Knobbe, Elise"]
[Black "Fu, Janice"]
[Result "1/2-1/2"]
[TimeControl "90min/40moves + 30min + 30sec/move"]
[WhiteElo "1553"]
[BlackElo "1344"]

1. c4 {[%clk 01:30:56]} {[%emt 00:00:04]} e5 {[%clk 01:30:38]} {[%emt
00:00:22]} 2. g3 {[%clk 01:31:15]} {[%emt 00:00:11]} Nf6 {[%clk 01:29:34]}
{[%emt 00:01:34]} 3. Bg2 {[%clk 01:31:21]} {[%emt 00:00:23]} Bc5 {[%clk
01:28:09]} {[%emt 00:01:56]} 4. Nc3 {[%clk 01:31:19]} {[%emt 00:00:32]} Nc6
{[%clk 01:27:58]} {[%emt 00:00:41]} 5. e3 {[%clk 01:31:24]} {[%emt 00:00:25]}
d6 {[%clk 01:26:53]} {[%emt 00:01:35]} 6. Nge2 {[%clk 01:30:57]} {[%emt
00:00:57]} Be6 {[%clk 01:26:12]} {[%emt 00:01:11]} 7. d4 {[%clk 01:30:36]}
{[%emt 00:00:51]} Bb6 {[%clk 01:09:07]} {[%emt 00:17:36]} 8. d5 {[%clk
01:30:53]} {[%emt 00:00:13]} Qd7 {[%clk 01:08:20]} {[%emt 00:01:16]} 9. dxe6
{[%clk 01:29:43]} {[%emt 00:01:40]} fxe6 {[%clk 01:08:40]} {[%emt 00:00:10]} 10.
b3 {[%clk 01:27:33]} {[%emt 00:02:40]} O-O {[%clk 01:08:04]} {[%emt 00:01:06]}
11. O-O {[%clk 01:27:53]} {[%emt 00:00:11]} Qe8 {[%clk 01:06:21]} {[%emt
00:02:12]} 12. Ne4 {[%clk 01:24:01]} {[%emt 00:04:19]} Qg6 {[%clk 01:04:52]}
{[%emt 00:02:01]} 13. Nxf6+ {[%clk 01:22:29]} {[%emt 00:02:03]} Rxf6 {[%clk
01:04:59]} {[%emt 00:00:23]} 14. a3 {[%clk 01:20:08]} {[%emt 00:02:52]} Raf8
{[%clk 01:04:28]} {[%emt 00:00:59]} 15. Nc3 {[%clk 01:18:17]} {[%emt 00:02:21]}
Qf7 {[%clk 01:03:01]} {[%emt 00:01:58]} 16. Ne4 {[%clk 01:17:27]} {[%emt
00:01:21]} Rg6 {[%clk 00:58:09]} {[%emt 00:05:21]} 17. Bb2 {[%clk 01:14:14]}
{[%emt 00:03:42]} Qf5 {[%clk 00:55:56]} {[%emt 00:02:43]} 18. Rc1 {[%clk
01:07:01]} {[%emt 00:07:45]} Rd8 {[%clk 00:53:48]} {[%emt 00:02:37]} 19. Qf3
{[%clk 01:04:27]} {[%emt 00:02:57]} Ne7 {[%clk 00:48:32]} {[%emt 00:05:52]} 20.
Qxf5 {[%clk 01:03:24]} {[%emt 00:01:34]} exf5 {[%emt 00:00:44]} 21. Nc3 {[%clk
01:03:18]} c6 {[%clk 00:48:55]} {[%emt 00:00:28]} 22. Rfd1 {[%clk 01:00:21]}
{[%emt 00:03:27]} Rf8 {[%clk 00:47:58]} {[%emt 00:01:27]} 23. Na4 {[%clk
00:57:41]} {[%emt 00:03:11]} Bc7 {[%clk 00:47:50]} {[%emt 00:00:37]} 24. c5
{[%clk 00:55:42]} {[%emt 00:02:30]} d5 {[%clk 00:47:38]} {[%emt 00:00:41]} 25.
Nc3 {[%clk 00:54:33]} {[%emt 00:01:39]} f4 {[%clk 00:47:26]} {[%emt 00:00:42]}
26. exf4 {[%clk 00:53:43]} {[%emt 00:01:20]} exf4 {[%clk 00:47:33]} {[%emt
00:00:23]} 27. Bf1 {[%clk 00:50:56]} {[%emt 00:03:16]} h5 {[%clk 00:47:02]}
{[%emt 00:01:01]} 28. Ne2 {[%clk 00:45:45]} {[%emt 00:05:42]} h4 {[%clk
00:46:22]} {[%emt 00:01:10]} 29. Rd3 {[%clk 00:42:26]} {[%emt 00:03:49]} Nf5
{[%clk 00:42:24]} {[%emt 00:04:28]} 30. Rf3 {[%clk 00:38:04]} {[%emt 00:04:51]}
hxg3 {[%clk 00:35:26]} {[%emt 00:07:29]} 31. hxg3 {[%clk 00:35:37]} {[%emt
00:02:57]} Nh4 {[%clk 00:34:05]} {[%emt 00:01:50]} 32. Rd3 {[%clk 00:34:21]}
{[%emt 00:01:46]} fxg3 {[%clk 00:31:32]} {[%emt 00:03:03]} 33. fxg3 {[%clk
00:32:35]} {[%emt 00:02:17]} Nf3+ {[%clk 00:31:02]} {[%emt 00:00:59]} 34. Kg2
{[%clk 00:31:36]} {[%emt 00:01:30]} Nh4+ {[%clk 00:29:25]} {[%emt 00:02:07]} 35.
Kg1 {[%clk 00:31:39]} {[%emt 00:00:20]} Nf3+ {[%clk 00:29:39]} {[%emt
00:00:22]} 36. Kg2 {[%clk 00:31:53]} {[%emt 00:00:17]} Nh4+ {[%clk 00:29:59]}
{[%emt 00:00:10]} 1/2-1/2

[Event "NJSK 2022 Meisjes C"]
[Site "Almelo, Netherlands"]
[Date "2022.05.04"]
[Round "4.5"]
[White "Kulikova, Polina"]
[Black "Gergin, Isafara"]
[Result "0-1"]
[TimeControl "90min/40moves + 30min + 30sec/move"]
[WhiteElo "1117"]
[BlackElo "1723"]

1. d4 {[%emt 00:00:03]} Nf6 {[%clk 01:30:54]} {[%emt 00:00:05]} 2. c4 {[%clk
01:31:10]} {[%emt 00:00:18]} g6 {[%clk 01:31:13]} {[%emt 00:00:11]} 3. Nf3
{[%clk 01:31:34]} {[%emt 00:00:07]} Bg7 {[%clk 01:31:25]} {[%emt 00:00:18]} 4.
Nc3 {[%clk 01:31:45]} {[%emt 00:00:19]} O-O {[%clk 01:31:35]} {[%emt 00:00:20]}
5. Bf4 {[%clk 01:31:10]} {[%emt 00:01:02]} d6 {[%clk 01:31:24]} {[%emt
00:00:43]} 6. g3 {[%clk 01:30:28]} {[%emt 00:01:11]} Nbd7 {[%clk 01:31:07]}
{[%emt 00:00:48]} 7. Qd2 {[%clk 01:29:25]} {[%emt 00:01:32]} Re8 {[%clk
01:24:54]} {[%emt 00:06:45]} 8. Bh6 {[%clk 01:26:31]} {[%emt 00:03:22]} e5
{[%clk 01:21:48]} {[%emt 00:03:37]} 9. Bxg7 {[%clk 01:25:56]} {[%emt 00:01:04]}
Kxg7 {[%clk 01:22:13]} {[%emt 00:00:06]} 10. dxe5 {[%clk 01:21:13]} {[%emt
00:05:14]} Nxe5 {[%clk 01:21:11]} {[%emt 00:01:31]} 11. Nxe5 {[%clk 01:21:26]}
{[%emt 00:00:16]} dxe5 {[%clk 01:18:31]} {[%emt 00:03:11]} 12. Rd1 {[%clk
01:21:28]} {[%emt 00:00:28]} Qe7 {[%clk 01:12:37]} {[%emt 00:06:25]} 13. Bg2
{[%clk 01:18:36]} {[%emt 00:03:21]} e4 {[%clk 01:03:46]} {[%emt 00:09:21]} 14.
Qc2 {[%clk 01:01:46]} {[%emt 00:17:20]} c6 {[%clk 00:56:05]} {[%emt 00:08:12]}
15. O-O {[%clk 00:57:31]} {[%emt 00:04:44]} Bf5 {[%clk 00:51:57]} {[%emt
00:04:39]} 16. Qc1 {[%clk 00:56:33]} {[%emt 00:01:24]} Qc5 {[%clk 00:43:05]}
{[%emt 00:09:25]} 17. b3 {[%clk 00:51:58]} {[%emt 00:05:05]} b5 {[%clk
00:31:50]} {[%emt 00:11:45]} 18. cxb5 {[%clk 00:46:39]} {[%emt 00:05:49]} cxb5
{[%clk 00:31:47]} {[%emt 00:00:33]} 19. Qb2 {[%clk 00:46:47]} {[%emt 00:00:22]}
Qe5 {[%clk 00:26:46]} {[%emt 00:05:32]} 20. Qa1 {[%clk 00:45:27]} {[%emt
00:01:46]} Rac8 {[%clk 00:23:47]} {[%emt 00:03:33]} 21. Rc1 {[%clk 00:41:20]}
{[%emt 00:04:36]} b4 {[%clk 00:19:16]} {[%emt 00:05:01]} 22. Na4 {[%clk
00:38:49]} {[%emt 00:03:00]} Qxa1 {[%clk 00:19:15]} {[%emt 00:00:32]} 23. Rxa1
{[%clk 00:39:10]} {[%emt 00:00:09]} Rc2 {[%clk 00:18:22]} {[%emt 00:01:23]} 24.
e3 {[%clk 00:37:33]} {[%emt 00:02:07]} Rd8 {[%clk 00:14:34]} {[%emt 00:04:19]}
25. Rfc1 {[%clk 00:32:19]} {[%emt 00:05:43]} Rdd2 {[%clk 00:10:50]} {[%emt
00:04:14]} 26. Rxc2 {[%clk 00:32:28]} {[%emt 00:00:21]} Rxc2 {[%clk 00:11:12]}
{[%emt 00:00:08]} 27. h3 {[%clk 00:32:09]} {[%emt 00:00:49]} h5 {[%clk
00:09:43]} {[%emt 00:02:04]} 28. Bf1 {[%clk 00:30:12]} {[%emt 00:02:27]} Nd7
{[%clk 00:07:33]} {[%emt 00:02:40]} 29. Kg2 {[%clk 00:30:12]} {[%emt 00:00:30]}
Ne5 {[%clk 00:06:56]} {[%emt 00:01:07]} 30. a3 {[%clk 00:28:19]} {[%emt
00:02:24]} bxa3 {[%clk 00:06:40]} {[%emt 00:00:46]} 31. Rxa3 {[%clk 00:28:46]}
{[%emt 00:00:02]} Nd3 {[%clk 00:06:35]} {[%emt 00:00:35]} 32. Bxd3 {[%clk
00:28:19]} {[%emt 00:00:57]} exd3 {[%clk 00:06:57]} {[%emt 00:00:08]} 33. Ra1
{[%clk 00:28:46]} {[%emt 00:00:03]} Be4+ {[%clk 00:04:45]} {[%emt 00:02:43]} 34.
Kf1 {[%clk 00:27:32]} {[%emt 00:01:43]} Bf3 {[%clk 00:04:46]} {[%emt 00:00:29]}
35. g4 {[%clk 00:26:06]} {[%emt 00:01:56]} d2 {[%clk 00:04:27]} {[%emt
00:00:50]} 36. Kg1 {[%clk 00:26:08]} {[%emt 00:00:27]} Rc1+ {[%clk 00:04:50]}
{[%emt 00:00:07]} 37. Rxc1 {[%clk 00:26:11]} {[%emt 00:00:27]} dxc1=Q+ {[%clk
00:05:14]} {[%emt 00:00:06]} 38. Kh2 {[%clk 00:26:37]} {[%emt 00:00:04]} Qf1
{[%clk 00:04:56]} {[%emt 00:00:49]} 39. Kg3 {[%clk 00:27:02]} {[%emt 00:00:04]}
Qg2+ {[%clk 00:05:00]} {[%emt 00:00:26]} 40. Kf4 {[%clk 00:27:14]} {[%emt
00:00:18]} Qxf2 {[%clk 00:05:14]} {[%emt 00:00:16]} 41. gxh5 {[%clk 00:27:14]}
{[%emt 00:00:30]} Bxh5+ {[%clk 00:05:36]} {[%emt 00:00:09]} 42. Ke4 {[%clk
00:27:39]} {[%emt 00:00:04]} Qf5+ {[%clk 00:05:43]} {[%emt 00:00:23]} 43. Kd4
{[%clk 00:28:05]} {[%emt 00:00:05]} Qxh3 {[%clk 00:05:56]} {[%emt 00:00:16]} 44.
Kd3 {[%clk 00:28:26]} {[%emt 00:00:09]} g5 {[%clk 00:06:10]} {[%emt 00:00:16]}
45. Nc3 {[%clk 00:28:47]} {[%emt 00:00:09]} g4 {[%clk 00:06:21]} {[%emt
00:00:20]} 46. Ne4 {[%clk 00:28:53]} {[%emt 00:00:23]} Bg6 {[%clk 00:06:43]}
{[%emt 00:00:09]} 47. Kd4 {[%clk 00:29:13]} {[%emt 00:00:10]} Bxe4 {[%clk
00:07:06]} {[%emt 00:00:07]} 48. Kxe4 {[%emt 00:00:05]} Qf3+ {[%clk 00:07:11]}
{[%emt 00:00:22]} 49. Kd4 {[%clk 00:29:33]} {[%emt 00:00:38]} Kf6 {[%clk
00:07:23]} {[%emt 00:00:17]} 50. b4 {[%clk 00:29:57]} {[%emt 00:00:06]} Qd1+
{[%clk 00:07:42]} {[%emt 00:00:11]} 51. Ke4 {[%clk 00:30:08]} {[%emt 00:00:19]}
g3 {[%clk 00:07:29]} {[%emt 00:00:43]} 52. b5 {[%clk 00:30:34]} {[%emt
00:00:05]} g2 {[%clk 00:07:31]} {[%emt 00:00:28]} 53. b6 {[%clk 00:31:02]}
{[%emt 00:00:02]} axb6 {[%clk 00:07:45]} {[%emt 00:00:16]} 54. Kf4 {[%clk
00:31:27]} {[%emt 00:00:05]} g1=R {[%clk 00:07:43]} {[%emt 00:00:31]} 55. e4
{[%clk 00:31:06]} {[%emt 00:00:51]} Rf1+ {[%clk 00:07:46]} {[%emt 00:00:27]} 56.
Kg3 {[%clk 00:31:27]} {[%emt 00:00:09]} Qf3+ {[%clk 00:07:57]} {[%emt
00:00:19]} 57. Kh4 {[%clk 00:31:44]} {[%emt 00:00:13]} Rh1# {[%clk 00:08:09]}
{[%emt 00:00:19]} 0-1